fUST/lending_fUST_20260612
["ID","MTS","AMOUNT","RATE_DAILY","PERIOD"]
[424911183,1781267442000,-422.65,0.00035616,7]
[424911182,1781267442000,-422.65,0.00035616,7]
[424911180,1781267442000,-2453.16,0.00035616,18]
[424911176,1781267442000,-422.65,0.00035616,7]
[424911167,1781267442000,-272.376344,0.00035616,7]
[424911160,1781267442000,-543.79,0.00035616,18]
[424911178,1781267442000,-422.65,0.00035616,7]
[424911175,1781267442000,-422.65,0.00035616,7]
[424911164,1781267442000,-272.376344,0.00035616,7]
[424911162,1781267442000,-500.0,0.00035616,18]
[424911158,1781267442000,-272.376344,0.00035616,7]
[424911166,1781267442000,-272.376344,0.00035616,7]
[424911194,1781267442000,-1147.088157,0.00035616,7]
[424911196,1781267442000,-422.65,0.00035616,7]
[424911185,1781267442000,-151.0,0.00035616,7]
[424911192,1781267442000,-151.0,0.00035616,7]
[424911200,1781267442000,-422.65,0.00035616,7]
[424911189,1781267442000,-1147.088157,0.00035616,7]
[424911198,1781267442000,-1147.088157,0.00035616,7]
[424911190,1781267442000,-500.0,0.00035616,18]
[424911202,1781267442000,-422.65,0.00035616,7]
[424911204,1781267442000,-151.0,0.00035616,7]
[424911205,1781267442000,-151.0,0.00035616,7]
[424911216,1781267442000,-422.65,0.00035616,7]
[424911207,1781267442000,-1147.088157,0.00035616,7]
[424911218,1781267442000,-422.65,0.00035616,7]
[424911173,1781267442000,-422.65,0.00035616,7]
[424911187,1781267442000,-151.0,0.00035616,7]
[424911169,1781267442000,-4806.79,0.00035616,18]
[424911128,1781267442000,-500.0,0.00035616,18]
[424911156,1781267442000,-712.94,0.00035616,18]
[424911211,1781267442000,-1147.088157,0.00035616,7]
[424911107,1781267442000,-365.843135,0.00035616,7]
[424911108,1781267442000,-365.843135,0.00035616,7]
[424911110,1781267442000,-365.843135,0.00035616,7]
[424911113,1781267442000,-151.0,0.00035616,7]
[424911112,1781267442000,-365.843135,0.00035616,7]
[424911118,1781267442000,-500.0,0.00035616,18]
[424911120,1781267442000,-1342.5,0.00035616,18]
[424911122,1781267442000,-2489.56,0.00035616,18]
[424911117,1781267442000,-254.343404,0.00035616,7]
[424911115,1781267442000,-151.0,0.00035616,7]
[424911131,1781267442000,-2082.45,0.00035616,18]
[424911124,1781267442000,-500.0,0.00035616,18]
[424911171,1781267442000,-1600.58,0.00035616,18]
[424911126,1781267442000,-1069.05,0.00035616,18]
[424911133,1781267442000,-500.0,0.00035616,18]
[424911134,1781267442000,-2758.48,0.00035616,11]
[424911145,1781267442000,-272.376344,0.00035616,7]
[424911136,1781267442000,-500.0,0.00035616,18]
[424911143,1781267442000,-272.376344,0.00035616,7]
[424911138,1781267442000,-3479.95,0.00035616,18]
[424911154,1781267442000,-272.376344,0.00035616,7]
[424911148,1781267442000,-272.376344,0.00035616,7]
[424911147,1781267442000,-272.376344,0.00035616,7]
[424911141,1781267442000,-272.376344,0.00035616,7]
[424911140,1781267442000,-500.0,0.00035616,18]
[424911152,1781267442000,-272.376344,0.00035616,7]
[424911150,1781267442000,-272.376344,0.00035616,7]
[424911129,1781267442000,-1767.66,0.00035616,18]
[424911214,1781267442000,-1147.088157,0.00035616,7]
[424911273,1781267442000,-166.394387,0.00035616,7]
[424911220,1781267442000,-1147.088157,0.00035616,7]
[424911283,1781267442000,-500.0,0.00035616,18]
[424911286,1781267442000,-166.394387,0.00035616,7]
[424911285,1781267442000,-500.0,0.00035616,18]
[424911293,1781267442000,-166.394387,0.00035616,7]
[424911294,1781267442000,-603.72,0.00035616,18]
[424911288,1781267442000,-166.394387,0.00035616,7]
[424911290,1781267442000,-166.394387,0.00035616,7]
[424911296,1781267442000,-1133.16,0.00035616,18]
[424911298,1781267442000,-151.0,0.00035616,7]
[424911308,1781267442000,-394.936983,0.00035709,120]
[424911300,1781267442000,-151.0,0.00035616,7]
[424911316,1781267442000,-334.25392611,0.00035889,18]
[424911310,1781267442000,-197.468491,0.00035709,120]
[424911279,1781267442000,-166.394387,0.00035616,7]
[424911302,1781267442000,-151.0,0.00035616,7]
[424911306,1781267442000,-621.78829552,0.00035699,30]
[424911312,1781267442000,-250.0,0.00035872,39]
[424911304,1781267442000,-250.0,0.00035694,39]
[424911319,1781267442000,-919.31,0.0003589,18]
[424911317,1781267442000,-964.5208,0.0003589,18]
[424911321,1781267442000,-818.08,0.0003589,18]
[424911325,1781267442000,-404.54537605,0.0003589,18]
[424911327,1781267442000,-151.0,0.0003589,7]
[424911323,1781267442000,-500.0,0.0003589,18]
[424911333,1781267442000,-587.98,0.0003589,18]
[424911329,1781267442000,-151.0,0.0003589,7]
[424911331,1781267442000,-1176.82,0.0003589,18]
[424911334,1781267442000,-500.0,0.0003589,18]
[424911314,1781267442000,-693.39197629,0.00035889,18]
[424911277,1781267442000,-832.18,0.00035616,18]
[424911209,1781267442000,-151.0,0.00035616,7]
[424911281,1781267442000,-166.394387,0.00035616,7]
[424911275,1781267442000,-166.394387,0.00035616,7]
[424911222,1781267442000,-1147.088157,0.00035616,7]
[424911223,1781267442000,-1147.088157,0.00035616,7]
[424911213,1781267442000,-422.65,0.00035616,7]
[424911228,1781267442000,-1147.088157,0.00035616,7]
[424911226,1781267442000,-1147.088157,0.00035616,7]
[424911240,1781267442000,-151.0,0.00035616,7]
[424911229,1781267442000,-1147.088157,0.00035616,7]
[424911231,1781267442000,-7476.56,0.00035616,18]
[424911244,1781267442000,-151.0,0.00035616,7]
[424911235,1781267442000,-151.0,0.00035616,7]
[424911249,1781267442000,-1088.18,0.00035616,18]
[424911247,1781267442000,-156.189061,0.00035616,7]
[424911237,1781267442000,-151.0,0.00035616,7]
[424911242,1781267442000,-151.0,0.00035616,7]
[424911246,1781267442000,-151.0,0.00035616,7]
[424911238,1781267442000,-5574.16,0.00035616,18]
[424911270,1781267442000,-500.0,0.00035616,18]
[424911272,1781267442000,-500.0,0.00035616,18]
[424911265,1781267442000,-3531.27,0.00035616,18]
[424911260,1781267442000,-500.0,0.00035616,18]
[424911254,1781267442000,-1406.84,0.00035616,18]
[424911267,1781267442000,-1493.0,0.00035616,18]
[424911336,1781267442000,-770.28,0.0003589,18]
[424911256,1781267442000,-6022.67,0.00035616,18]
[424911252,1781267442000,-1686.86,0.00035616,18]
[424911250,1781267442000,-682.8,0.00035616,18]
[424911233,1781267442000,-151.0,0.00035616,7]
[424911258,1781267442000,-500.0,0.00035616,18]
[424911404,1781267443000,-188.258458,0.0003589,7]
[424911401,1781267443000,-188.25846,0.0003589,7]
[424911410,1781267443000,-1302.88,0.0003589,18]
[424911419,1781267443000,-297.511764,0.0003589,7]
[424911408,1781267443000,-500.0,0.0003589,18]
[424911406,1781267443000,-931.25,0.0003589,18]
[424911399,1781267443000,-188.25846,0.0003589,7]
[424911417,1781267443000,-297.511755,0.0003589,7]
[424911414,1781267443000,-297.511755,0.0003589,7]
[424911418,1781267443000,-755.84,0.0003589,18]
[424911412,1781267443000,-151.0,0.0003589,7]
[424911421,1781267443000,-500.0,0.0003589,2]
[424911416,1781267443000,-297.511755,0.0003589,7]
[424911450,1781267443000,-151.0,0.0003589,7]
[424911429,1781267443000,-160.0,0.0003589,7]
[424911433,1781267443000,-13301.79061725,0.0003589,15]
[424911431,1781267443000,-160.0,0.0003589,7]
[424911444,1781267443000,-151.0,0.0003589,7]
[424911440,1781267443000,-177.331958,0.0003589,7]
[424911446,1781267443000,-500.0,0.0003589,18]
[424911438,1781267443000,-177.331958,0.0003589,7]
[424911425,1781267443000,-500.0,0.0003589,18]
[424911435,1781267443000,-177.331958,0.0003589,7]
[424911436,1781267443000,-2123.25,0.0003589,18]
[424911442,1781267443000,-177.331949,0.0003589,7]
[424911448,1781267443000,-500.0,0.0003589,18]
[424911423,1781267443000,-160.0,0.0003589,7]
[424911427,1781267443000,-160.0,0.0003589,7]
[424911394,1781267443000,-967.03,0.0003589,18]
[424911362,1781267443000,-500.0,0.0003589,18]
[424911397,1781267443000,-188.25846,0.0003589,7]
[424911461,1781267443000,-500.0,0.0003589,18]
[424911342,1781267443000,-639.05,0.0003589,18]
[424911338,1781267443000,-500.89790277,0.0003589,13]
[424911340,1781267443000,-500.0,0.0003589,18]
[424911344,1781267443000,-500.0,0.0003589,18]
[424911346,1781267443000,-500.0,0.0003589,18]
[424911349,1781267443000,-500.0,0.0003589,18]
[424911347,1781267443000,-500.0,0.0003589,18]
[424911358,1781267443000,-500.0,0.0003589,18]
[424911356,1781267443000,-622.24,0.0003589,18]
[424911353,1781267443000,-500.0,0.0003589,18]
[424911351,1781267443000,-500.0,0.0003589,18]
[424911360,1781267443000,-500.0,0.0003589,18]
[424911396,1781267443000,-500.0,0.0003589,18]
[424911355,1781267443000,-500.0,0.0003589,18]
[424911369,1781267443000,-394.366273,0.0003589,7]
[424911366,1781267443000,-394.366273,0.0003589,7]
[424911371,1781267443000,-394.366271,0.0003589,7]
[424911374,1781267443000,-151.0,0.0003589,7]
[424911377,1781267443000,-500.0,0.0003589,18]
[424911392,1781267443000,-1558.83,0.0003589,18]
[424911379,1781267443000,-313.438526,0.0003589,7]
[424911388,1781267443000,-313.438532,0.0003589,7]
[424911383,1781267443000,-313.438526,0.0003589,7]
[424911386,1781267443000,-500.0,0.0003589,18]
[424911381,1781267443000,-1195.92,0.0003589,18]
[424911390,1781267443000,-500.0,0.0003589,18]
[424911385,1781267443000,-313.438526,0.0003589,7]
[424911364,1781267443000,-500.0,0.0003589,18]
[424911457,1781267443000,-1964.23,0.0003589,18]
[424911367,1781267443000,-394.366273,0.0003589,7]
[424911453,1781267443000,-500.0,0.0003589,18]
[424911519,1781267443000,-1139.38,0.0003589,18]
[424911521,1781267443000,-151.0,0.0003589,7]
[424911523,1781267443000,-2843.87,0.0003589,18]
[424911525,1781267443000,-1395.61,0.0003589,18]
[424911533,1781267443000,-500.0,0.0003589,18]
[424911528,1781267443000,-500.0,0.0003589,18]
[424911529,1781267443000,-29194.82,0.0003589,18]
[424911531,1781267443000,-500.0,0.0003589,18]
[424911526,1781267443000,-606.07,0.0003589,18]
[424911534,1781267443000,-4576.94,0.0003589,18]
[424911540,1781267443000,-2558.77,0.0003589,18]
[424911542,1781267443000,-151.0,0.0003589,7]
[424911544,1781267443000,-151.0,0.0003589,7]
[424911517,1781267443000,-500.0,0.0003589,18]
[424911547,1781267443000,-151.0,0.0003589,7]
[424911553,1781267443000,-151.0,0.0003589,7]
[424911574,1781267443000,-500.0,0.0003589,18]
[424911549,1781267443000,-500.0,0.0003589,18]
[424911546,1781267443000,-151.0,0.0003589,7]
[424911562,1781267443000,-157.97203614,0.0003589,2]
[424911555,1781267443000,-434.72484341,0.0003589,18]
[424911559,1781267443000,-500.0,0.0003589,18]
[424911557,1781267443000,-823.38,0.0003589,2]
[424911564,1781267443000,-2042.66,0.0003589,18]
[424911566,1781267443000,-1158.95,0.0003589,18]
[424911568,1781267443000,-3598.32,0.0003589,18]
[424911572,1781267443000,-1863.25,0.0003589,18]
[424911570,1781267443000,-500.0,0.0003589,18]
[424911551,1781267443000,-151.0,0.0003589,7]
[424911515,1781267443000,-174.339087,0.0003589,7]
[424911561,1781267443000,-1105.4,0.0003589,18]
[424911512,1781267443000,-515.8,0.0003589,18]
[424911510,1781267443000,-500.0,0.0003589,18]
[424911455,1781267443000,-597.66,0.0003589,18]
[424911451,1781267443000,-500.0,0.0003589,6]
[424911462,1781267443000,-507.86,0.0003589,18]
[424911466,1781267443000,-500.0,0.0003589,18]
[424911469,1781267443000,-500.0,0.0003589,18]
[424911468,1781267443000,-1251.12,0.0003589,18]
[424911464,1781267443000,-637.26,0.0003589,18]
[424911471,1781267443000,-500.0,0.0003589,18]
[424911475,1781267443000,-500.0,0.0003589,18]
[424911477,1781267443000,-770.11,0.0003589,18]
[424911479,1781267443000,-520.75,0.0003589,18]
[424911473,1781267443000,-1324.22,0.0003589,18]
[424911486,1781267443000,-500.0,0.0003589,18]
[424911459,1781267443000,-500.0,0.0003589,18]
[424911484,1781267443000,-500.0,0.0003589,18]
[424911482,1781267443000,-500.0,0.0003589,18]
[424911513,1781267443000,-500.0,0.0003589,18]
[424911508,1781267443000,-515.62,0.0003589,18]
[424911496,1781267443000,-1153.42,0.0003589,18]
[424911502,1781267443000,-500.0,0.0003589,18]
[424911504,1781267443000,-500.0,0.0003589,18]
[424911500,1781267443000,-500.0,0.0003589,18]
[424911506,1781267443000,-500.0,0.0003589,18]
[424911498,1781267443000,-745.16,0.0003589,18]
[424911492,1781267443000,-500.0,0.0003589,18]
[424911490,1781267443000,-748.35,0.0003589,18]
[424911494,1781267443000,-500.0,0.0003589,18]
[424911481,1781267443000,-500.0,0.0003589,18]
[424911488,1781267443000,-4022.67,0.0003589,18]
[424911625,1781267444000,-272.376344,0.0003589,7]
[424911622,1781267444000,-272.376344,0.0003589,7]
[424911627,1781267444000,-272.376344,0.0003589,7]
[424911635,1781267444000,-272.376344,0.0003589,7]
[424911633,1781267444000,-543.79,0.0003589,18]
[424911636,1781267444000,-500.0,0.0003589,18]
[424911638,1781267444000,-272.376344,0.0003589,7]
[424911640,1781267444000,-4806.79,0.0003589,18]
[424911620,1781267444000,-500.0,0.0003589,18]
[424911650,1781267444000,-2453.16,0.0003589,18]
[424911655,1781267444000,-500.0,0.0003589,18]
[424911642,1781267444000,-272.376344,0.0003589,7]
[424911648,1781267444000,-422.65,0.0003589,7]
[424911646,1781267444000,-422.65,0.0003589,7]
[424911653,1781267444000,-422.65,0.0003589,7]
[424911618,1781267444000,-3479.95,0.0003589,18]
[424911651,1781267444000,-422.65,0.0003589,7]
[424911657,1781267444000,-151.0,0.0003589,7]
[424911659,1781267444000,-151.0,0.0003589,7]
[424911661,1781267444000,-1147.088157,0.0003589,7]
[424911662,1781267444000,-1147.088157,0.0003589,7]
[424911644,1781267444000,-1600.58,0.0003589,18]
[424911629,1781267444000,-712.94,0.0003589,18]
[424911592,1781267444000,-365.843135,0.0003589,7]
[424911614,1781267444000,-2758.48,0.0003589,11]
[424911670,1781267444000,-1147.088157,0.0003589,7]
[424911579,1781267444000,-365.843135,0.0003589,7]
[424911575,1781267444000,-5926.29,0.0003589,18]
[424911577,1781267444000,-1075.26,0.0003589,18]
[424911584,1781267444000,-365.843135,0.0003589,7]
[424911581,1781267444000,-365.843135,0.0003589,7]
[424911582,1781267444000,-365.843135,0.0003589,7]
[424911586,1781267444000,-500.0,0.0003589,18]
[424911590,1781267444000,-365.843135,0.0003589,7]
[424911588,1781267444000,-635.37,0.0003589,18]
[424911612,1781267444000,-500.0,0.0003589,18]
[424911594,1781267444000,-365.843135,0.0003589,7]
[424911601,1781267444000,-2489.56,0.0003589,18]
[424911607,1781267444000,-500.0,0.0003589,18]
[424911598,1781267444000,-500.0,0.0003589,18]
[424911605,1781267444000,-1069.05,0.0003589,18]
[424911599,1781267444000,-1342.5,0.0003589,18]
[424911603,1781267444000,-500.0,0.0003589,18]
[424911610,1781267444000,-2082.45,0.0003589,18]
[424911623,1781267444000,-272.376344,0.0003589,7]
[424911616,1781267444000,-500.0,0.0003589,18]
[424911631,1781267444000,-272.376344,0.0003589,7]
[424911609,1781267444000,-1767.66,0.0003589,18]
[424911596,1781267444000,-365.843129,0.0003589,7]
[424911677,1781267444000,-1147.088157,0.0003589,7]
[424911664,1781267444000,-422.65,0.0003589,7]
[424911726,1781267444000,-166.394387,0.0003589,7]
[424911729,1781267444000,-166.394387,0.0003589,7]
[424911748,1781267444000,-166.394387,0.0003589,7]
[424911737,1781267444000,-166.394387,0.0003589,7]
[424911743,1781267444000,-500.0,0.0003589,18]
[424911751,1781267444000,-166.394387,0.0003589,7]
[424911763,1781267444000,-166.394387,0.0003589,7]
[424911769,1781267444000,-1133.16,0.0003589,18]
[424911756,1781267444000,-166.394387,0.0003589,7]
[424911766,1781267444000,-166.394386,0.0003589,7]
[424911724,1781267444000,-166.394387,0.0003589,7]
[424911759,1781267444000,-166.394387,0.0003589,7]
[424911767,1781267444000,-603.72,0.0003589,18]
[424911758,1781267444000,-166.394387,0.0003589,7]
[424911771,1781267444000,-151.0,0.0003589,7]
[424911774,1781267444000,-151.0,0.0003589,7]
[424911773,1781267444000,-151.0,0.0003589,7]
[424911776,1781267444000,-195.62,0.0003589,2]
[424911780,1781267444000,-188.221511,0.00035978,21]
[424911778,1781267444000,-614.05507057,0.00035928,2]
[424911782,1781267444000,-214.062726,0.00035978,120]
[424911674,1781267444000,-422.65,0.0003589,7]
[424911754,1781267444000,-500.0,0.0003589,18]
[424911732,1781267444000,-832.18,0.0003589,18]
[424911762,1781267444000,-166.394387,0.0003589,7]
[424911719,1781267444000,-500.0,0.0003589,18]
[424911666,1781267444000,-422.65,0.0003589,7]
[424911721,1781267444000,-500.0,0.0003589,18]
[424911675,1781267444000,-422.65,0.0003589,7]
[424911668,1781267444000,-246.694216,0.0003589,7]
[424911672,1781267444000,-1147.088157,0.0003589,7]
[424911681,1781267444000,-1147.088157,0.0003589,7]
[424911684,1781267444000,-7476.56,0.0003589,18]
[424911679,1781267444000,-1147.088157,0.0003589,7]
[424911698,1781267444000,-682.8,0.0003589,18]
[424911686,1781267444000,-151.0,0.0003589,7]
[424911700,1781267444000,-1686.86,0.0003589,18]
[424911682,1781267444000,-1147.088151,0.0003589,7]
[424911706,1781267444000,-6022.67,0.0003589,18]
[424911688,1781267444000,-5574.16,0.0003589,18]
[424911691,1781267444000,-151.0,0.0003589,7]
[424911695,1781267444000,-1088.18,0.0003589,18]
[424911693,1781267444000,-151.0,0.0003589,7]
[424911703,1781267444000,-1406.84,0.0003589,18]
[424911709,1781267444000,-500.0,0.0003589,18]
[424911717,1781267444000,-1493.0,0.0003589,18]
[424911714,1781267444000,-3531.27,0.0003589,18]
[424911711,1781267444000,-500.0,0.0003589,18]
[424911689,1781267444000,-151.0,0.0003589,7]
[424911865,1781267445000,-535.43992223,0.00036164,18]
[424911842,1781267445000,-500.0,0.00036164,18]
[424911857,1781267445000,-755.84,0.00036164,18]
[424911861,1781267445000,-500.0,0.00036164,18]
[424911867,1781267445000,-500.0,0.00036164,18]
[424911854,1781267445000,-500.0,0.00036164,18]
[424911848,1781267445000,-967.03,0.00036164,18]
[424911855,1781267445000,-1302.88,0.00036164,18]
[424911850,1781267445000,-500.0,0.00036164,18]
[424911838,1781267445000,-500.0,0.00036164,18]
[424911846,1781267445000,-1558.83,0.00036164,18]
[424911852,1781267445000,-931.25,0.00036164,18]
[424911859,1781267445000,-500.0,0.00036164,2]
[424911891,1781267445000,-500.0,0.00036164,18]
[424911869,1781267445000,-500.0,0.00036164,6]
[424911871,1781267445000,-500.0,0.00036164,18]
[424911873,1781267445000,-597.66,0.00036164,18]
[424911875,1781267445000,-1964.23,0.00036164,18]
[424911887,1781267445000,-1251.12,0.00036164,18]
[424911879,1781267445000,-500.0,0.00036164,18]
[424911877,1781267445000,-500.0,0.00036164,18]
[424911881,1781267445000,-507.86,0.00036164,18]
[424911885,1781267445000,-500.0,0.00036164,18]
[424911889,1781267445000,-500.0,0.00036164,18]
[424911883,1781267445000,-637.26,0.00036164,18]
[424911893,1781267445000,-1324.22,0.00036164,18]
[424911844,1781267445000,-500.0,0.00036164,18]
[424911863,1781267445000,-2123.25,0.00036164,18]
[424911836,1781267445000,-500.0,0.00036164,18]
[424911784,1781267445000,-214.062727,0.00035978,21]
[424911829,1781267445000,-622.24,0.00036164,18]
[424911895,1781267445000,-500.0,0.00036164,18]
[424911786,1781267445000,-500.0,0.00036005,5]
[424911796,1781267445000,-187.7937259,0.0003614,2]
[424911794,1781267445000,-250.0,0.00036037,39]
[424911792,1781267445000,-244.83,0.00036023,7]
[424911790,1781267445000,-233.17499522,0.00036023,7]
[424911788,1781267445000,-300.0,0.00036005,5]
[424911798,1781267445000,-966.4454,0.00036164,18]
[424911809,1781267445000,-500.0,0.00036164,18]
[424911810,1781267445000,-770.28,0.00036164,18]
[424911799,1781267445000,-919.31,0.00036164,18]
[424911812,1781267445000,-500.0,0.00036164,18]
[424911817,1781267445000,-500.0,0.00036164,18]
[424911814,1781267445000,-639.05,0.00036164,18]
[424911815,1781267445000,-500.0,0.00036164,18]
[424911801,1781267445000,-818.08,0.00036164,18]
[424911821,1781267445000,-500.0,0.00036164,18]
[424911819,1781267445000,-500.0,0.00036164,18]
[424911805,1781267445000,-1176.82,0.00036164,18]
[424911803,1781267445000,-500.0,0.00036164,18]
[424911807,1781267445000,-587.98,0.00036164,18]
[424911823,1781267445000,-500.0,0.00036164,18]
[424911831,1781267445000,-500.0,0.00036164,18]
[424911825,1781267445000,-500.0,0.00036164,18]
[424911827,1781267445000,-500.0,0.00036164,18]
[424911833,1781267445000,-500.0,0.00036164,18]
[424911840,1781267445000,-1195.92,0.00036164,18]
[424911835,1781267445000,-500.0,0.00036164,18]
[424911897,1781267445000,-770.11,0.00036164,18]
[424912001,1781267445000,-500.0,0.00036164,18]
[424911900,1781267445000,-500.0,0.00036164,18]
[424911966,1781267445000,-1158.95,0.00036164,18]
[424911968,1781267445000,-3598.32,0.00036164,18]
[424911972,1781267445000,-1863.25,0.00036164,18]
[424911965,1781267445000,-2042.66,0.00036164,18]
[424911974,1781267445000,-500.0,0.00036164,18]
[424911970,1781267445000,-500.0,0.00036164,18]
[424911976,1781267445000,-5926.29,0.00036164,18]
[424911987,1781267445000,-2489.56,0.00036164,18]
[424911985,1781267445000,-500.0,0.00036164,18]
[424911980,1781267445000,-500.0,0.00036164,18]
[424911983,1781267445000,-1342.5,0.00036164,18]
[424911978,1781267445000,-1075.26,0.00036164,18]
[424911981,1781267445000,-635.37,0.00036164,18]
[424911989,1781267445000,-500.0,0.00036164,18]
[424911991,1781267445000,-1069.05,0.00036164,18]
[424911993,1781267445000,-500.0,0.00036164,18]
[424912014,1781267445000,-4806.79,0.00036164,18]
[424911995,1781267445000,-1767.66,0.00036164,18]
[424911999,1781267445000,-2758.48,0.00036164,11]
[424911997,1781267445000,-2082.45,0.00036164,18]
[424912006,1781267445000,-500.0,0.00036164,18]
[424912003,1781267445000,-3479.95,0.00036164,18]
[424912008,1781267445000,-712.94,0.00036164,18]
[424912012,1781267445000,-543.79,0.00036164,18]
[424912004,1781267445000,-605.59162502,0.00036164,18]
[424912010,1781267445000,-500.0,0.00036164,18]
[424912016,1781267445000,-1600.58,0.00036164,18]
[424911952,1781267445000,-4576.94,0.00036164,18]
[424911946,1781267445000,-29194.82,0.00036164,18]
[424911899,1781267445000,-520.75,0.00036164,18]
[424911948,1781267445000,-500.0,0.00036164,18]
[424911962,1781267445000,-1105.4,0.00036164,18]
[424911906,1781267445000,-500.0,0.00036164,18]
[424911902,1781267445000,-500.0,0.00036164,18]
[424911904,1781267445000,-500.0,0.00036164,18]
[424911910,1781267445000,-748.35,0.00036164,18]
[424911912,1781267445000,-500.0,0.00036164,18]
[424911908,1781267445000,-4022.67,0.00036164,18]
[424911914,1781267445000,-500.0,0.00036164,18]
[424911918,1781267445000,-745.16,0.00036164,18]
[424911923,1781267445000,-238.3436569,0.00036164,18]
[424911921,1781267445000,-500.0,0.00036164,18]
[424911920,1781267445000,-500.0,0.00036164,18]
[424911933,1781267445000,-500.0,0.00036164,18]
[424911931,1781267445000,-515.8,0.00036164,18]
[424911916,1781267445000,-1153.42,0.00036164,18]
[424911927,1781267445000,-515.62,0.00036164,18]
[424911935,1781267445000,-500.0,0.00036164,18]
[424911960,1781267445000,-500.0,0.00036164,18]
[424911958,1781267445000,-823.38,0.00036164,2]
[424911942,1781267445000,-606.07,0.00036164,18]
[424911944,1781267445000,-500.0,0.00036164,18]
[424911955,1781267445000,-2558.77,0.00036164,18]
[424911957,1781267445000,-500.0,0.00036164,18]
[424911950,1781267445000,-500.0,0.00036164,18]
[424911938,1781267445000,-2843.87,0.00036164,18]
[424911937,1781267445000,-1139.38,0.00036164,18]
[424911929,1781267445000,-500.0,0.00036164,18]
[424911925,1781267445000,-500.0,0.00036164,18]
[424911940,1781267445000,-1395.61,0.00036164,18]
[424912100,1781267446000,-500.0,0.00036438,18]
[424912091,1781267446000,-500.0,0.00036438,18]
[424912094,1781267446000,-500.0,0.00036438,18]
[424912110,1781267446000,-500.0,0.00036438,18]
[424912096,1781267446000,-500.0,0.00036438,18]
[424912078,1781267446000,-1176.82,0.00036438,18]
[424912092,1781267446000,-500.0,0.00036438,18]
[424912089,1781267446000,-500.0,0.00036438,18]
[424912087,1781267446000,-639.05,0.00036438,18]
[424912081,1781267446000,-500.0,0.00036438,18]
[424912103,1781267446000,-622.24,0.00036438,18]
[424912098,1781267446000,-500.0,0.00036438,18]
[424912112,1781267446000,-500.0,0.00036438,18]
[424912133,1781267446000,-529.34975679,0.00036438,2]
[424912109,1781267446000,-500.0,0.00036438,18]
[424912107,1781267446000,-454.28444819,0.00036438,18]
[424912114,1781267446000,-1195.92,0.00036438,18]
[424912116,1781267446000,-500.0,0.00036438,18]
[424912125,1781267446000,-931.25,0.00036438,18]
[424912127,1781267446000,-500.0,0.00036438,18]
[424912129,1781267446000,-1302.88,0.00036438,18]
[424912131,1781267446000,-755.84,0.00036438,18]
[424912120,1781267446000,-1558.83,0.00036438,18]
[424912118,1781267446000,-500.0,0.00036438,18]
[424912121,1781267446000,-967.03,0.00036438,18]
[424912123,1781267446000,-500.0,0.00036438,18]
[424912080,1781267446000,-587.98,0.00036438,18]
[424912105,1781267446000,-500.0,0.00036438,18]
[424912076,1781267446000,-500.0,0.00036438,18]